[Event "Gibraltar Masters 13th"]
[Site "Caleta"]
[Date "2015.02.05"]
[Round "10"]
[White "Wagner, Dennis"]
[Black "Iturrizaga Bonelli, Eduardo"]
[Result "1-0"]
[ECO "A40"]
[WhiteElo "2501"]
[BlackElo "2649"]
[Annotator "Wagner,D"]
[PlyCount "83"]
[EventDate "2015.01.27"]
[EventType "swiss"]
[EventRounds "10"]
[EventCountry "GGB"]
[SourceTitle "CBM 165"]
[Source "ChessBase"]
[SourceDate "2015.03.11"]
[SourceVersion "1"]
[SourceVersionDate "2015.03.11"]
[SourceQuality "1"]
[TimeControl "6600+10"]

{Bereits vor dieser Partie hatte ich ein sehr starkes Turnier gespielt und es
konnte nicht mehr allzu viel schiefgehen. Bei einem Remis war mir ein
Ratingpreis sicher, allerdings konnte ich mit einem Sieg auch noch in die Top
10 aufsteigen. Deshalb beschloss ich, möglichst objektiv zu spielen, um das
Maximale aus der Partie herauszuholen.} 1. d4 {[%emt 0:09:15]} e6 {[%emt 0:09:
34]} 2. c4 {[%emt 0:00:00]} b6 $5 {[%emt 0:00:24] Iturrizaga ist bekannt für
eher unkonventionelle Eröffnungen wie Wolgagambit oder Benoni. Dieses System
hatte er bisher noch nicht angewandt, ist aber für seinen Stil typisch.} 3. e4
{[%emt 0:00:35] die prinzipiellste Fortsetzung} Bb7 {[%emt 0:00:00]} 4. Bd3 {
[%emt 0:00:00]} Bb4+ {[%emt 0:00:00]} 5. Kf1 $1 {[%emt 0:06:49] Dieser Zug war
mir aus der Partie So-Jobava, Bergamo 2014 bekannt. 5.Bd2 nebst 6.Qxd2 war
eine sicherere Alternative, aber ich entschloss mich für den meiner Meinung
nach objektiv stärksten Zug.} (5. Bd2 Bxd2+ 6. Qxd2 f5 7. Nc3 fxe4 (7... Nf6 8.
f3 fxe4 9. fxe4 O-O 10. Nf3) 8. Bxe4 Bxe4 9. Nxe4 Nf6 10. Nxf6+ Qxf6 11. Nf3
O-O 12. O-O $14 {Weiß steht etwas angenehmer.}) 5... Be7 {[%emt 0:10:27]} (5...
e5 {Es ist fraglich, ob Schwarz für den geopferten Bauern genügend
Kompensation erhält.} 6. dxe5 d6 (6... Nc6 7. Nf3 $1 (7. f4 d6 8. a3 Bc5 9.
exd6 Qxd6 10. Nc3 O-O-O $44 {1-0 (34) Holt,C (2534)-Berczes,D (2522) Dallas
2013})) 7. a3 Bc5 8. exd6 Qxd6 9. Nc3 $16 {1-0 (38) Ragger,M (2657)-Hamitevici,
V (2453) Bilbao 2014}) 6. Nf3 {[%emt 0:00:00]} d6 {[%emt 0:00:28]} 7. Nc3 {
[%emt 0:00:00]} Nd7 {[%emt 0:00:06]} (7... Nf6 8. g3 O-O 9. Kg2 Nbd7 10. Qe2 c5
11. d5 Re8 12. Rd1 Bf8 13. dxe6 fxe6 14. Bc2 $14 {1-0 (37) So,W (2744)-Jobava,
B (2713) Bergamo 2014}) 8. g3 {[%emt 0:02:04]} Bf6 $5 {[%emt 0:32:43] Dieser
Aufbau ist sehr interessant, die schwarze Stellung wirkt zwar recht passiv, da
er Weiß das gesamte Zentrum überlässt, aber bald wird ...c5 folgen und Schwarz
erhält gutes Gegenspiel. Problematisch war nur, dass mein Gegner zu viel Zeit
verbrauchte, um sich für diese Spielweise zu entscheiden.} (8... Ngf6 9. Kg2
O-O 10. Re1 e5 11. Bc2 $14 {hielt ich für eine logische Sequenz; die weiße
Stellung ist etwas angenehmer, aber Schwarz bekommt häufig Gegenspiel mit
einem gut getimten exd4; wenn Weiß das Zentrum schließt, bietet sich die
Möglichkeit c6 mit Spiel am Damenflügel.} Re8 (11... exd4 $6 12. Nxd4 Ne5 (
12... Nc5 13. b4) 13. Nf5) 12. Qe2 $14 (12. d5 c6 13. Be3 Rc8 14. Qe2 cxd5 15.
exd5) (12. Be3 Ng4)) 9. Kg2 {[%emt 0:01:08]} Ne7 {[%emt 0:01:43]} 10. Be3 {
[%emt 0:06:40]} (10. Bc2 $5 {um die c5-Idee zu stoppen} O-O 11. Qd3 {[%cal
Ge4e5]} (11. Be3 c5 $1) 11... e5 (11... g6 12. h4) 12. d5 Nc5 13. Qe2 a5 14.
Be3 $14) 10... c5 $1 {[%emt 0:12:16]} (10... O-O 11. Qd2 (11. h4 c5) (11. g4 c5
) (11. Bc2 c5 12. d5 Bxc3 13. bxc3 Ng6) 11... c5 12. d5 Ng6) 11. d5 {[%emt 0:
01:51]} (11. Nb5 Nc8 {hilft Weiß nicht weiter.}) 11... Bxc3 {[%emt 0:01:05]}
12. bxc3 {[%emt 0:00:12]} Ng6 {[%emt 0:00:09]} (12... O-O $1 {scheint genauer
zu sein, jetzt ist sofortiges Sd2 nicht überzeugend und wenn man ein Tempo für
Lc2 geben muss, wird das schwarze Gegenspiel rechtzeitig sein.} 13. a4 (13. Bc2
Ng6 $1 14. dxe6 (14. Nd2 f5 $1) 14... fxe6 15. Qxd6 $2 Rxf3 $1) (13. Nd2 exd5
14. cxd5 f5 $132) 13... Ng6 14. a5 Nde5 15. Nxe5 Nxe5 16. Be2 Ba6 17. axb6 axb6
18. Qb3 f5 $132) 13. Nd2 $1 {[%emt 0:19:23]} O-O {[%emt 0:09:59]} 14. f4 {
[%emt 0:04:39]} exd5 $5 {[%emt 0:05:08] Wenn Schwarz nichts konkretes findet,
steht Weiß einfach besser, er wird langfristig einen Angriff am Königsflügel
vorbereiten. Nun entbrannt ein Kampf um das weiße Zentrum.} (14... Nf6 15. Bc2)
15. cxd5 {[%emt 0:00:31]} f5 {[%emt 0:02:07]} 16. c4 $1 {[%emt 0:03:40] Es ist
wichtig, das Zentrum intakt zu halten!} b5 $1 {[%emt 0:02:40]} 17. Rb1 {
[%emt 0:07:47]} (17. cxb5 Nf6 {und Weiß kann das Zentrum nicht halten.}) 17...
bxc4 {[%emt 0:00:12]} 18. Nxc4 {[%emt 0:00:29]} Nb6 {[%emt 0:00:23]} 19. Na5 {
[%emt 0:00:33]} Qe7 $2 {[%emt 0:04:33] Ein schwerer strategischer Fehler,
nachdem die schwarze Stellung schlecht ist. Es war unbedingt notwendig, den
weißfeldrigen Läufer zu behalten! Das Feld c6 ist für den weißen Springer
nicht von großem Nutzen.} (19... Bc8 $1 20. Qc2 (20. exf5 Bxf5 21. Bxf5 Rxf5 {
[%csl Rd5]}) (20. Nc6 Qe8 $1 21. e5 (21. Qc2 Qf7) 21... dxe5 22. Bxc5 Be6 $1)
20... fxe4 21. Bxe4 Qf6 $1 {Nach dem Abtausch der weißfeldrigen Läufer durch
Lf5 wird d5 hoffnungslos schwach. Weiß muss nach einem Weg suchen, das Remis
zu sichern.} 22. Rhe1 (22. Nc6 Bf5) (22. Nc4 Re8) 22... Bf5 23. Bxf5 Qxf5 24.
Qxf5 Rxf5 25. Bf2 (25. Nb7 Nc4 (25... Rxd5 26. Rbd1 $11) 26. Bf2 Rf7 27. Re6
Rd7) 25... Rxd5 26. Nc6 Rd2 27. Rbd1 Rxd1 28. Rxd1 Nc4 29. Rc1 Nb6 30. Rd1 $132
) (19... Nxd5 $2 20. Bc4 $1 $18 (20. exd5 Bxd5+)) 20. Nxb7 {[%emt 0:01:10]}
Qxb7 {[%emt 0:00:00]} 21. Re1 {[%emt 0:00:00]} Qf7 {[%emt 0:07:57]} 22. Bf2 {
[%emt 0:03:35]} fxe4 {[%emt 0:04:24]} (22... Ne5 23. Bc2) 23. Bxe4 {[%emt 0:00:
19]} Rae8 {[%emt 0:01:59]} 24. Qd3 {[%emt 0:08:12]} (24. a4 $5) 24... Ne5 {
[%emt 0:03:14]} 25. Qc2 {[%emt 0:17:18]} (25. Bxh7+ $1 Kh8 26. Qc2 Ng4 27. Bg6
{wird Zugumstellung.}) 25... Ng4 {[%emt 0:00:00]} (25... Ng6 {wäre stärker
gewesen, aber natürlich geht man nicht gerne wieder zurück.}) 26. Bxh7+ {
[%emt 0:00:19]} Kh8 {[%emt 0:00:00]} 27. Bg6 {[%emt 0:09:08]} Qxd5+ {[%emt 0:
00:00]} 28. Kg1 {[%emt 0:00:00]} (28. Be4 Qf7 29. Bg1 $16) 28... Rxe1+ {
[%emt 0:01:21]} 29. Rxe1 {[%emt 0:00:00] Aus praktischer Sicht ist die
Stellung fast gewonnen für Weiß. Mein Gegner war in Zeitnot und sein König ist
unheilbar schwach.} Nf6 $6 {[%emt 0:00:56]} (29... Nxf2 30. Qxf2 $16) (29...
Nd7 $1 {wäre zäher gewesen} 30. h3 Nxf2 31. Qxf2 Kg8 32. Qe2 $16) 30. Qe2 {
[%emt 0:00:00]} Nbd7 {[%emt 0:00:17]} 31. Rd1 {[%emt 0:01:25]} Qc6 {[%emt 0:00:
13]} 32. Qe6 {[%emt 0:00:15]} Qf3 {[%emt 0:00:13]} 33. Qh3+ {[%emt 0:01:32]}
Kg8 {[%emt 0:00:00]} 34. Rxd6 {[%emt 0:00:00]} Rd8 {[%emt 0:00:00]} 35. Qe6+ {
[%emt 0:00:36]} Kh8 {[%emt 0:00:00]} 36. Qh3+ {[%emt 0:00:44]} Kg8 {[%emt 0:00:
00]} 37. Qe6+ {[%emt 0:00:00]} Kh8 {[%emt 0:00:00]} 38. Rd3 {[%emt 0:02:02]}
Qb7 {[%emt 0:00:00]} 39. Qh3+ {[%emt 0:00:12]} Kg8 {[%emt 0:00:00]} 40. Qe6+ {
[%emt 0:00:00]} Kh8 {[%emt 0:00:00]} 41. g4 {[%emt 0:03:02]} Ng8 {[%emt 0:00:
00]} (41... Qb1+ 42. Be1 $1) 42. Rh3+ {[%emt 0:00:00] Eine sehr wichtige
Partie, die mich auf den 6. Platz katapultierte und ein sehr erfolgreiches
Turnier mit einem positiven Akzent beendete.} (42. Rh3+ {Schwarz gab auf, da
nach} Nh6 {einfach} 43. Qe7 {nebst Rxh6 folgt.}) 1-0